[Event "Live Chess"]
[Site "Chess.com"]
[Date "2024.06.02"]
[Round "-"]
[White "MagnersCarlsberg2870"]
[Black "nitrofish07"]
[Result "0-1"]
[WhiteElo "1782"]
[BlackElo "2081"]
[TimeControl "300"]
[EndTime "7:13:56 PDT"]
[Termination "nitrofish07 won by resignation"]

1. d4 {[%clk 0:04:57.5]} 1... d5 {[%clk 0:04:58.7]} 2. e3 {[%clk 0:04:56.4]}
2... Nf6 {[%clk 0:04:57.5]} 3. Bd3 {[%clk 0:04:55.4]} 3... c6 {[%clk 0:04:55.2]}
4. Nd2 {[%clk 0:04:53.3]} 4... g6 {[%clk 0:04:52.3]} 5. f3 {[%clk 0:04:46.9]}
5... Bg7 {[%clk 0:04:51.4]} 6. Ne2 {[%clk 0:04:45.4]} 6... O-O {[%clk
0:04:50.1]} 7. c3 {[%clk 0:04:44.3]} 7... Nbd7 {[%clk 0:04:49.2]} 8. h4 {[%clk
0:04:42.2]} 8... e5 {[%clk 0:04:46.9]} 9. g4 {[%clk 0:04:40.2]} 9... Re8 {[%clk
0:04:43.9]} 10. h5 {[%clk 0:04:36.2]} 10... e4 {[%clk 0:04:42.7]} 11. fxe4
{[%clk 0:04:22.5]} 11... dxe4 {[%clk 0:04:42.6]} 12. Bc4 {[%clk 0:04:20.5]}
12... Nxg4 {[%clk 0:04:40.5]} 13. hxg6 {[%clk 0:04:16.8]} 13... hxg6 {[%clk
0:04:32.5]} 14. Nf1 {[%clk 0:03:55.2]} 14... Qf6 {[%clk 0:04:27.4]} 15. Nf4
{[%clk 0:03:51.6]} 15... Nxe3 {[%clk 0:04:18.3]} 16. Bxe3 {[%clk 0:03:48.8]}
16... g5 {[%clk 0:04:11.2]} 17. Nh5 {[%clk 0:03:42.9]} 17... Qg6 {[%clk
0:04:10.1]} 18. Nxg7 {[%clk 0:03:41.5]} 18... Kxg7 {[%clk 0:04:10]} 19. Qd2
{[%clk 0:03:37.8]} 19... Nb6 {[%clk 0:04:06.2]} 20. Be2 {[%clk 0:03:30.3]} 20...
f6 {[%clk 0:03:43.5]} 21. Bh5 {[%clk 0:03:28.1]} 21... Qh6 {[%clk 0:03:25.3]}
22. Bxe8 {[%clk 0:03:25.2]} 22... Qxh1 {[%clk 0:03:24]} 23. O-O-O {[%clk
0:03:24.1]} 23... Bg4 {[%clk 0:03:19.5]} 24. Re1 {[%clk 0:03:12.8]} 24... Rxe8
{[%clk 0:03:16.4]} 25. Ng3 {[%clk 0:03:09.7]} 25... Qf3 {[%clk 0:03:13.9]} 26.
Bxg5 {[%clk 0:03:05.3]} 26... Nc4 {[%clk 0:03:01.3]} 27. Bh6+ {[%clk 0:02:59.6]}
27... Kh7 {[%clk 0:02:56.7]} 28. Qh2 {[%clk 0:02:56.1]} 28... Rh8 {[%clk
0:02:15.5]} 29. Rh1 {[%clk 0:02:47.3]} 29... Kg6 {[%clk 0:02:11]} 30. Nh5 {[%clk
0:02:25.5]} 30... Bxh5 {[%clk 0:02:07.6]} 31. Rg1+ {[%clk 0:02:20.1]} 31... Bg4
{[%clk 0:02:05.9]} 0-1

[Event "Live Chess"]
[Site "Chess.com"]
[Date "2024.06.02"]
[Round "-"]
[White "LL220284LL"]
[Black "ACM42"]
[Result "1-0"]
[WhiteElo "2467"]
[BlackElo "2184"]
[TimeControl "300"]
[EndTime "7:13:59 PDT"]
[Termination "LL220284LL won by resignation"]

1. Nf3 {[%clk 0:04:58.2]} 1... Nf6 {[%clk 0:04:58.8]} 2. g3 {[%clk 0:04:57.6]}
2... g6 {[%clk 0:04:58]} 3. Bg2 {[%clk 0:04:56.7]} 3... Bg7 {[%clk 0:04:57.9]}
4. O-O {[%clk 0:04:56.1]} 4... O-O {[%clk 0:04:57.8]} 5. d3 {[%clk 0:04:55.5]}
5... d6 {[%clk 0:04:57]} 6. e4 {[%clk 0:04:54.4]} 6... c5 {[%clk 0:04:56.1]} 7.
Nbd2 {[%clk 0:04:52.7]} 7... Nc6 {[%clk 0:04:55.4]} 8. h4 {[%clk 0:04:48.7]}
8... a6 {[%clk 0:04:44.5]} 9. Nh2 {[%clk 0:04:46.7]} 9... b5 {[%clk 0:04:30.9]}
10. a4 {[%clk 0:04:43.5]} 10... Bb7 {[%clk 0:04:28.7]} 11. f4 {[%clk 0:04:38.9]}
11... Nd7 {[%clk 0:04:18.6]} 12. Ndf3 {[%clk 0:04:34.9]} 12... c4 {[%clk
0:04:15.2]} 13. f5 {[%clk 0:04:30.2]} 13... Qb6+ {[%clk 0:04:11.2]} 14. Kh1
{[%clk 0:04:28.2]} 14... Nde5 {[%clk 0:04:02.5]} 15. Nxe5 {[%clk 0:04:12.2]}
15... dxe5 {[%clk 0:03:43.7]} 16. Ng4 {[%clk 0:04:05.4]} 16... cxd3 {[%clk
0:03:22.1]} 17. cxd3 {[%clk 0:04:02.5]} 17... Rad8 {[%clk 0:03:21.1]} 18. Nh6+
{[%clk 0:03:58.5]} 18... Kh8 {[%clk 0:03:16.7]} 19. fxg6 {[%clk 0:03:56.7]}
19... fxg6 {[%clk 0:03:15.3]} 20. Nf7+ {[%clk 0:03:54.8]} 20... Rxf7 {[%clk
0:02:54.6]} 21. Rxf7 {[%clk 0:03:54.7]} 21... Bf6 {[%clk 0:02:53.9]} 22. Bg5
{[%clk 0:03:49.7]} 22... Kg8 {[%clk 0:02:53]} 23. Rxf6 {[%clk 0:03:45.9]} 23...
exf6 {[%clk 0:02:52.2]} 24. Bxf6 {[%clk 0:03:45.8]} 24... Rf8 {[%clk 0:02:49.5]}
25. Qb3+ {[%clk 0:03:44.2]} 25... Rf7 {[%clk 0:02:45.6]} 26. Rf1 {[%clk
0:03:42.7]} 26... Nd4 {[%clk 0:02:43.3]} 27. Qxf7+ {[%clk 0:03:40.8]} 27... Kxf7
{[%clk 0:02:35.8]} 28. Bd8+ {[%clk 0:03:40.7]} 1-0

[Event "Live Chess"]
[Site "Chess.com"]
[Date "2024.06.02"]
[Round "-"]
[White "RichardABates"]
[Black "JanMur7"]
[Result "1-0"]
[WhiteElo "2384"]
[BlackElo "2289"]
[TimeControl "300"]
[EndTime "7:14:03 PDT"]
[Termination "RichardABates won by checkmate"]

1. d4 {[%clk 0:04:57.6]} 1... Nf6 {[%clk 0:04:57.5]} 2. Nf3 {[%clk 0:04:55.8]}
2... e6 {[%clk 0:04:56.3]} 3. c4 {[%clk 0:04:54.4]} 3... d5 {[%clk 0:04:55.3]}
4. g3 {[%clk 0:04:52.5]} 4... dxc4 {[%clk 0:04:53.9]} 5. Bg2 {[%clk 0:04:51.1]}
5... Bb4+ {[%clk 0:04:53.4]} 6. Bd2 {[%clk 0:04:49.4]} 6... c5 {[%clk 0:04:53]}
7. O-O {[%clk 0:04:47.8]} 7... O-O {[%clk 0:04:51.3]} 8. dxc5 {[%clk 0:04:44]}
8... Bxc5 {[%clk 0:04:50.1]} 9. Ne5 {[%clk 0:04:38.9]} 9... Nbd7 {[%clk
0:04:37.3]} 10. Nxc4 {[%clk 0:04:36.2]} 10... Rb8 {[%clk 0:04:36.6]} 11. Bf4
{[%clk 0:04:33.1]} 11... Ra8 {[%clk 0:04:28.6]} 12. Bd6 {[%clk 0:04:31.1]} 12...
Bxd6 {[%clk 0:04:26.9]} 13. Nxd6 {[%clk 0:04:29.8]} 13... Rb8 {[%clk 0:04:24.4]}
14. Nc3 {[%clk 0:04:28.1]} 14... b6 {[%clk 0:04:19.8]} 15. Ncb5 {[%clk
0:04:23.8]} 15... a5 {[%clk 0:04:14.8]} 16. Na7 {[%clk 0:04:20.4]} 16... Ne5
{[%clk 0:03:44.5]} 17. Naxc8 {[%clk 0:04:13.7]} 17... Rxc8 {[%clk 0:03:41]} 18.
Nxc8 {[%clk 0:04:12]} 18... Qxc8 {[%clk 0:03:35.9]} 19. Rc1 {[%clk 0:04:10.1]}
19... Qa6 {[%clk 0:03:31.6]} 20. Qd2 {[%clk 0:03:58.3]} 20... h5 {[%clk
0:03:30.3]} 21. Rfd1 {[%clk 0:03:41.6]} 21... h4 {[%clk 0:03:26.9]} 22. Qe3
{[%clk 0:03:36.9]} 22... Neg4 {[%clk 0:03:24.2]} 23. Qd3 {[%clk 0:03:26.9]}
23... Qa7 {[%clk 0:03:15.2]} 24. h3 {[%clk 0:03:22.3]} 24... Ne5 {[%clk
0:03:08.5]} 25. Qd4 {[%clk 0:03:19.6]} 25... Ng6 {[%clk 0:03:07.1]} 26. gxh4
{[%clk 0:03:12.7]} 26... e5 {[%clk 0:03:05.6]} 27. Qe3 {[%clk 0:03:03.6]} 27...
Nxh4 {[%clk 0:02:57.3]} 28. Rd6 {[%clk 0:02:48]} 28... Nxg2 {[%clk 0:02:50.3]}
29. Kxg2 {[%clk 0:02:45.8]} 29... Qb7+ {[%clk 0:02:49.6]} 30. f3 {[%clk
0:02:40.7]} 30... Re8 {[%clk 0:02:46.4]} 31. Rcd1 {[%clk 0:02:32.3]} 31... Qe7
{[%clk 0:02:39.8]} 32. Qxb6 {[%clk 0:02:23.3]} 32... Nh5 {[%clk 0:02:35.8]} 33.
Rd8 {[%clk 0:01:53.8]} 33... Nf4+ {[%clk 0:02:32.8]} 34. Kf1 {[%clk 0:01:43.8]}
34... Ne6 {[%clk 0:01:59.2]} 35. Rxe8+ {[%clk 0:01:41.7]} 35... Qxe8 {[%clk
0:01:59.1]} 36. Qd6 {[%clk 0:01:37]} 36... Qa4 {[%clk 0:01:52.4]} 37. b3 {[%clk
0:01:26.2]} 37... Qh4 {[%clk 0:01:49.4]} 38. Qxe5 {[%clk 0:01:24.5]} 38... Qxh3+
{[%clk 0:01:47.3]} 39. Kf2 {[%clk 0:01:18.1]} 39... Qh4+ {[%clk 0:01:35.5]} 40.
Qg3 {[%clk 0:01:16.3]} 40... Qb4 {[%clk 0:01:31.3]} 41. Qg4 {[%clk 0:01:01.6]}
41... Qc5+ {[%clk 0:01:27.8]} 42. Kf1 {[%clk 0:00:58.7]} 42... Qc2 {[%clk
0:01:26.2]} 43. Rd7 {[%clk 0:00:48.2]} 43... Qc1+ {[%clk 0:01:12.2]} 44. Kf2
{[%clk 0:00:46.8]} 44... Qc5+ {[%clk 0:01:10.3]} 45. Kg2 {[%clk 0:00:45.4]}
45... Qb5 {[%clk 0:01:08.7]} 46. Rd3 {[%clk 0:00:36.8]} 46... Qe5 {[%clk
0:01:05.6]} 47. e3 {[%clk 0:00:33.2]} 47... Qb2+ {[%clk 0:01:03.7]} 48. Kg3
{[%clk 0:00:30.5]} 48... Qxa2 {[%clk 0:01:02.5]} 49. Rc3 {[%clk 0:00:28.5]}
49... Qa1 {[%clk 0:00:50.4]} 50. Rc8+ {[%clk 0:00:26.6]} 50... Nf8 {[%clk
0:00:49.9]} 51. Qc4 {[%clk 0:00:18.3]} 51... Qe5+ {[%clk 0:00:43.9]} 52. Qf4
{[%clk 0:00:14.7]} 52... Qe6 {[%clk 0:00:35.1]} 53. Qc7 {[%clk 0:00:12.9]} 53...
Qg6+ {[%clk 0:00:32.9]} 54. Kf2 {[%clk 0:00:11.7]} 54... Qf6 {[%clk 0:00:22.3]}
55. Qd8 {[%clk 0:00:08.7]} 55... Qh4+ {[%clk 0:00:21.1]} 56. Qxh4 {[%clk
0:00:06.3]} 56... g6 {[%clk 0:00:17.4]} 57. Qf6 {[%clk 0:00:05.2]} 57... g5
{[%clk 0:00:15.4]} 58. Rc7 {[%clk 0:00:04.1]} 58... Nh7 {[%clk 0:00:10.6]} 59.
Qxf7+ {[%clk 0:00:03.2]} 59... Kh8 {[%clk 0:00:10.5]} 60. Qg7# {[%clk
0:00:02.7]} 1-0

[Event "Live Chess"]
[Site "Chess.com"]
[Date "2024.06.02"]
[Round "-"]
[White "halfberg"]
[Black "Step-S"]
[Result "1-0"]
[WhiteElo "1890"]
[BlackElo "1282"]
[TimeControl "300"]
[EndTime "7:14:05 PDT"]
[Termination "halfberg won by checkmate"]

1. e4 {[%clk 0:04:54.8]} 1... c6 {[%clk 0:04:57.6]} 2. d4 {[%clk 0:04:52.7]}
2... d6 {[%clk 0:04:56.4]} 3. Nc3 {[%clk 0:04:51.6]} 3... g6 {[%clk 0:04:55.9]}
4. f4 {[%clk 0:04:48.7]} 4... Bg7 {[%clk 0:04:55.8]} 5. Nf3 {[%clk 0:04:47.5]}
5... Bg4 {[%clk 0:04:53.9]} 6. Be2 {[%clk 0:04:46.1]} 6... Nd7 {[%clk
0:04:51.5]} 7. O-O {[%clk 0:04:33.4]} 7... h5 {[%clk 0:04:45.9]} 8. h3 {[%clk
0:04:24.4]} 8... e6 {[%clk 0:04:36.5]} 9. hxg4 {[%clk 0:04:20.1]} 9... hxg4
{[%clk 0:04:35.5]} 10. Ng5 {[%clk 0:04:17.1]} 10... Bh6 {[%clk 0:04:29.3]} 11.
Bxg4 {[%clk 0:04:14.1]} 11... Bxg5 {[%clk 0:04:26.3]} 12. fxg5 {[%clk
0:04:12.6]} 12... Qe7 {[%clk 0:04:14.8]} 13. d5 {[%clk 0:04:01.5]} 13... O-O-O
{[%clk 0:04:09.8]} 14. dxc6 {[%clk 0:03:59]} 14... bxc6 {[%clk 0:04:05.7]} 15.
Qd3 {[%clk 0:03:56.6]} 15... Nb8 {[%clk 0:03:54.2]} 16. Qc4 {[%clk 0:03:52.1]}
16... f5 {[%clk 0:03:41.3]} 17. gxf6 {[%clk 0:03:40.1]} 17... Nxf6 {[%clk
0:03:36.7]} 18. Bxe6+ {[%clk 0:03:34.3]} 18... Kc7 {[%clk 0:03:32.7]} 19. Bf4
{[%clk 0:03:00.2]} 19... Qh7 {[%clk 0:03:29.2]} 20. Nb5+ {[%clk 0:02:24.8]}
20... Kb7 {[%clk 0:03:22.8]} 21. Nxd6+ {[%clk 0:02:21.8]} 21... Ka8 {[%clk
0:03:15]} 22. Bh3 {[%clk 0:02:17.6]} 22... Qc7 {[%clk 0:02:35]} 23. Nf7 {[%clk
0:02:02.2]} 23... Qb6+ {[%clk 0:02:28]} 24. Kh1 {[%clk 0:01:53.8]} 24... Rxh3+
{[%clk 0:02:25.6]} 25. gxh3 {[%clk 0:01:51.5]} 25... Nh5 {[%clk 0:02:08]} 26.
Bxb8 {[%clk 0:01:41.6]} 26... Rxb8 {[%clk 0:02:02.1]} 27. Ne5 {[%clk 0:01:30.8]}
27... Ng3+ {[%clk 0:01:59.2]} 28. Kh2 {[%clk 0:01:27.8]} 28... Nxf1+ {[%clk
0:01:57.3]} 29. Rxf1 {[%clk 0:01:26.1]} 29... Rc8 {[%clk 0:01:42.7]} 30. Nd3
{[%clk 0:01:15.3]} 30... Qc7+ {[%clk 0:01:39.1]} 31. e5 {[%clk 0:01:14.1]} 31...
Qe7 {[%clk 0:01:21.9]} 32. Rf7 {[%clk 0:01:09]} 32... Qg5 {[%clk 0:01:12]} 33.
Qf4 {[%clk 0:00:53.9]} 33... Qd8 {[%clk 0:01:03.8]} 34. Qf2 {[%clk 0:00:51.7]}
34... Qd5 {[%clk 0:00:55.7]} 35. Qxa7# {[%clk 0:00:49.1]} 1-0

[Event "Live Chess"]
[Site "Chess.com"]
[Date "2024.06.02"]
[Round "-"]
[White "stevochess11"]
[Black "Eva3337"]
[Result "1-0"]
[WhiteElo "1691"]
[BlackElo "1167"]
[TimeControl "300"]
[EndTime "7:14:05 PDT"]
[Termination "stevochess11 won by checkmate"]

1. d4 {[%clk 0:04:56.7]} 1... d5 {[%clk 0:04:56.7]} 2. Nf3 {[%clk 0:04:55.6]}
2... e6 {[%clk 0:04:55.7]} 3. e3 {[%clk 0:04:54.4]} 3... c5 {[%clk 0:04:55.2]}
4. Bd3 {[%clk 0:04:49.5]} 4... cxd4 {[%clk 0:04:53.8]} 5. exd4 {[%clk
0:04:48.6]} 5... Nf6 {[%clk 0:04:47.4]} 6. Nbd2 {[%clk 0:04:45.4]} 6... Nc6
{[%clk 0:04:45.7]} 7. a3 {[%clk 0:04:41.2]} 7... a5 {[%clk 0:04:30.2]} 8. b3
{[%clk 0:04:34.4]} 8... b6 {[%clk 0:04:28.8]} 9. Bb2 {[%clk 0:04:32.8]} 9... Ba6
{[%clk 0:04:27]} 10. c4 {[%clk 0:04:26.2]} 10... Be7 {[%clk 0:04:12.6]} 11. O-O
{[%clk 0:04:22.8]} 11... O-O {[%clk 0:04:10.9]} 12. Ne5 {[%clk 0:04:21.4]} 12...
Nxe5 {[%clk 0:04:05.6]} 13. dxe5 {[%clk 0:04:21.3]} 13... Nd7 {[%clk 0:03:56.2]}
14. f4 {[%clk 0:04:16.4]} 14... f6 {[%clk 0:03:50.9]} 15. Rf3 {[%clk 0:03:55.9]}
15... Nc5 {[%clk 0:03:49.8]} 16. Bxh7+ {[%clk 0:03:54.1]} 16... Kf7 {[%clk
0:03:40.1]} 17. Rh3 {[%clk 0:03:54]} 17... f5 {[%clk 0:03:23.7]} 18. Qh5+ {[%clk
0:03:50]} 18... g6 {[%clk 0:03:15]} 19. Qxg6# {[%clk 0:03:46.5]} 1-0

[Event "Live Chess"]
[Site "Chess.com"]
[Date "2024.06.02"]
[Round "-"]
[White "CheckThis4"]
[Black "Bradfield133"]
[Result "1-0"]
[WhiteElo "2681"]
[BlackElo "1844"]
[TimeControl "300"]
[EndTime "7:14:06 PDT"]
[Termination "CheckThis4 won by checkmate"]

1. d4 {[%clk 0:04:57.8]} 1... d6 {[%clk 0:04:57.9]} 2. e4 {[%clk 0:04:56.1]}
2... g6 {[%clk 0:04:56.2]} 3. Nc3 {[%clk 0:04:55.4]} 3... Bg7 {[%clk 0:04:55.3]}
4. Be3 {[%clk 0:04:55]} 4... Nd7 {[%clk 0:04:53.7]} 5. Qd2 {[%clk 0:04:54.4]}
5... c5 {[%clk 0:04:51.7]} 6. Nge2 {[%clk 0:04:52.4]} 6... cxd4 {[%clk
0:04:48.2]} 7. Nxd4 {[%clk 0:04:52.3]} 7... Ngf6 {[%clk 0:04:47]} 8. f3 {[%clk
0:04:51.9]} 8... O-O {[%clk 0:04:45.1]} 9. O-O-O {[%clk 0:04:50.3]} 9... a6
{[%clk 0:04:34.4]} 10. Bh6 {[%clk 0:04:17.1]} 10... Qc7 {[%clk 0:04:12.6]} 11.
h4 {[%clk 0:04:14.7]} 11... Ne5 {[%clk 0:04:06.9]} 12. h5 {[%clk 0:04:09.8]}
12... Nc4 {[%clk 0:03:52.7]} 13. Bxc4 {[%clk 0:04:07.1]} 13... Qxc4 {[%clk
0:03:50.9]} 14. Bxg7 {[%clk 0:04:04.4]} 14... Kxg7 {[%clk 0:03:47.6]} 15. hxg6
{[%clk 0:04:02.1]} 15... fxg6 {[%clk 0:03:44.8]} 16. Qh6+ {[%clk 0:03:58.2]}
16... Kg8 {[%clk 0:03:42.2]} 17. Nd5 {[%clk 0:03:55.4]} 17... Rf7 {[%clk
0:03:35]} 18. b3 {[%clk 0:03:35]} 18... Qc5 {[%clk 0:03:26.7]} 19. Nxf6+ {[%clk
0:03:23.5]} 19... exf6 {[%clk 0:03:23]} 20. Kb1 {[%clk 0:03:23.1]} 20... Qc7
{[%clk 0:03:03.3]} 21. Ne2 {[%clk 0:03:19.1]} 21... Be6 {[%clk 0:02:57.5]} 22.
Nf4 {[%clk 0:03:17.6]} 22... Re8 {[%clk 0:02:55.8]} 23. Nxg6 {[%clk 0:03:16.3]}
23... hxg6 {[%clk 0:02:53.6]} 24. Qh8# {[%clk 0:03:14.7]} 1-0

[Event "Live Chess"]
[Site "Chess.com"]
[Date "2024.06.02"]
[Round "-"]
[White "JohanKjeldahl"]
[Black "jimwad"]
[Result "1-0"]
[WhiteElo "1797"]
[BlackElo "1333"]
[TimeControl "300"]
[EndTime "7:14:07 PDT"]
[Termination "JohanKjeldahl won by resignation"]

1. e4 {[%clk 0:04:58]} 1... e5 {[%clk 0:04:58.6]} 2. Nf3 {[%clk 0:04:56]} 2...
Nc6 {[%clk 0:04:56.7]} 3. d4 {[%clk 0:04:55]} 3... exd4 {[%clk 0:04:55.4]} 4. c3
{[%clk 0:04:54.1]} 4... d6 {[%clk 0:04:53.5]} 5. cxd4 {[%clk 0:04:52.2]} 5...
Bg4 {[%clk 0:04:51.6]} 6. Nc3 {[%clk 0:04:50.4]} 6... Nf6 {[%clk 0:04:48.4]} 7.
Be2 {[%clk 0:04:48.6]} 7... Be7 {[%clk 0:04:46.3]} 8. O-O {[%clk 0:04:47.5]}
8... O-O {[%clk 0:04:44.6]} 9. h3 {[%clk 0:04:46.6]} 9... Bxf3 {[%clk
0:04:43.3]} 10. Bxf3 {[%clk 0:04:45.1]} 10... h6 {[%clk 0:04:35.2]} 11. Bf4
{[%clk 0:04:43.2]} 11... Nh7 {[%clk 0:04:13.6]} 12. a3 {[%clk 0:04:39.8]} 12...
Bg5 {[%clk 0:04:12.2]} 13. Bg3 {[%clk 0:04:36]} 13... Bh4 {[%clk 0:04:03.8]} 14.
Rc1 {[%clk 0:04:27.7]} 14... Bxg3 {[%clk 0:04:01.8]} 15. fxg3 {[%clk 0:04:26.8]}
15... Ng5 {[%clk 0:03:59.1]} 16. Bg4 {[%clk 0:04:13]} 16... Qe7 {[%clk
0:03:49.4]} 17. Qd3 {[%clk 0:04:07.9]} 17... Rae8 {[%clk 0:03:37.5]} 18. Rce1
{[%clk 0:04:04.5]} 18... a6 {[%clk 0:03:33.5]} 19. Nd5 {[%clk 0:04:01.8]} 19...
Qd8 {[%clk 0:03:28.9]} 20. b4 {[%clk 0:03:45.8]} 20... Ne7 {[%clk 0:03:27.1]}
21. Ne3 {[%clk 0:03:33.4]} 21... c6 {[%clk 0:03:14.6]} 22. h4 {[%clk 0:03:22.1]}
22... Nh7 {[%clk 0:03:10.1]} 23. Nf5 {[%clk 0:03:11.4]} 23... Nxf5 {[%clk
0:03:08.7]} 24. Bxf5 {[%clk 0:03:07.2]} 24... Nf6 {[%clk 0:03:01.3]} 25. e5
{[%clk 0:03:01.6]} 25... dxe5 {[%clk 0:02:59.7]} 26. dxe5 {[%clk 0:03:00.7]}
26... Qxd3 {[%clk 0:02:54.9]} 27. Bxd3 {[%clk 0:02:59.5]} 27... Nd5 {[%clk
0:02:50.5]} 28. Bc4 {[%clk 0:02:57.8]} 28... b5 {[%clk 0:02:44.2]} 29. Bb3
{[%clk 0:02:54.6]} 29... Nc7 {[%clk 0:02:37.7]} 30. Rf2 {[%clk 0:02:47.4]} 30...
Ne6 {[%clk 0:02:36.1]} 31. Rd2 {[%clk 0:02:36.8]} 31... Rd8 {[%clk 0:02:30.3]}
32. Red1 {[%clk 0:02:34.3]} 32... Rxd2 {[%clk 0:02:24.5]} 33. Rxd2 {[%clk
0:02:33.1]} 33... Rd8 {[%clk 0:02:22]} 34. Rd6 {[%clk 0:02:24.5]} 34... Rxd6
{[%clk 0:02:16.8]} 35. exd6 {[%clk 0:02:23.5]} 35... Nd8 {[%clk 0:02:15.9]} 36.
Kf2 {[%clk 0:02:19.1]} 36... Kf8 {[%clk 0:02:15.1]} 37. Ke3 {[%clk 0:02:18.2]}
37... f6 {[%clk 0:02:14.4]} 38. Kd4 {[%clk 0:02:16.5]} 38... Ke8 {[%clk
0:02:13.7]} 39. Kc5 {[%clk 0:02:15.5]} 39... Kd7 {[%clk 0:02:12.9]} 40. Kb6
{[%clk 0:02:04.4]} 40... Nb7 {[%clk 0:02:11.7]} 41. Kxb7 {[%clk 0:02:02.7]}
41... Kxd6 {[%clk 0:02:10.5]} 42. Kb6 {[%clk 0:02:00.5]} 42... a5 {[%clk
0:02:08.1]} 43. bxa5 {[%clk 0:01:58.9]} 43... g5 {[%clk 0:01:58.9]} 44. a6
{[%clk 0:01:55.2]} 44... gxh4 {[%clk 0:01:56.2]} 45. gxh4 {[%clk 0:01:53.3]}
45... f5 {[%clk 0:01:55.4]} 46. a7 {[%clk 0:01:52.2]} 1-0

[Event "Live Chess"]
[Site "Chess.com"]
[Date "2024.06.02"]
[Round "-"]
[White "Dashman93"]
[Black "ivan_1968"]
[Result "1-0"]
[WhiteElo "2146"]
[BlackElo "1815"]
[TimeControl "300"]
[EndTime "7:14:07 PDT"]
[Termination "Dashman93 won by resignation"]

1. e4 {[%clk 0:04:58.9]} 1... c6 {[%clk 0:04:58.4]} 2. d4 {[%clk 0:04:57.3]}
2... d5 {[%clk 0:04:58.3]} 3. e5 {[%clk 0:04:55.9]} 3... Bf5 {[%clk 0:04:56.6]}
4. Be2 {[%clk 0:04:55.2]} 4... e6 {[%clk 0:04:54.4]} 5. Nf3 {[%clk 0:04:54.4]}
5... Nd7 {[%clk 0:04:52.6]} 6. c3 {[%clk 0:04:53.6]} 6... Ne7 {[%clk 0:04:51.2]}
7. Bd3 {[%clk 0:04:52.5]} 7... c5 {[%clk 0:04:48.6]} 8. O-O {[%clk 0:04:51.7]}
8... Bxd3 {[%clk 0:04:46.9]} 9. Qxd3 {[%clk 0:04:50.9]} 9... Nc6 {[%clk
0:04:46.5]} 10. Be3 {[%clk 0:04:48.8]} 10... Be7 {[%clk 0:04:44.2]} 11. Nbd2
{[%clk 0:04:47.6]} 11... O-O {[%clk 0:04:42.2]} 12. h4 {[%clk 0:04:46.5]} 12...
f6 {[%clk 0:04:33.4]} 13. exf6 {[%clk 0:04:43.5]} 13... Nxf6 {[%clk 0:04:09.8]}
14. Ng5 {[%clk 0:04:42.1]} 14... Qd7 {[%clk 0:03:49.6]} 15. dxc5 {[%clk
0:04:40.7]} 15... e5 {[%clk 0:03:25.5]} 16. Rad1 {[%clk 0:04:37.1]} 16... Rad8
{[%clk 0:02:49.4]} 17. b4 {[%clk 0:04:35]} 17... e4 {[%clk 0:02:41.5]} 18. Qe2
{[%clk 0:04:32.9]} 18... Qf5 {[%clk 0:02:31.5]} 19. f3 {[%clk 0:04:23.9]} 19...
exf3 {[%clk 0:02:13.7]} 20. Qxf3 {[%clk 0:04:22.7]} 20... Qxf3 {[%clk
0:02:08.4]} 21. Ndxf3 {[%clk 0:04:21.5]} 21... Ng4 {[%clk 0:02:02.4]} 22. Bd4
{[%clk 0:04:14.4]} 22... Nxd4 {[%clk 0:01:58.1]} 23. Rxd4 {[%clk 0:04:13.4]}
23... Ne3 {[%clk 0:01:51.9]} 24. Re1 {[%clk 0:04:12.5]} 24... Nf5 {[%clk
0:01:49.7]} 25. Ne6 {[%clk 0:04:02.8]} 25... Nxd4 {[%clk 0:01:47]} 26. Nfxd4
{[%clk 0:04:02.7]} 26... Bxh4 {[%clk 0:01:43.6]} 27. Re2 {[%clk 0:04:02]} 27...
Rde8 {[%clk 0:01:33.8]} 28. Nxf8 {[%clk 0:03:59.8]} 28... Rxe2 {[%clk
0:01:29.6]} 29. Nxe2 {[%clk 0:03:59.7]} 29... Kxf8 {[%clk 0:01:28.8]} 30. Nf4
{[%clk 0:03:59]} 30... Be1 {[%clk 0:01:17.1]} 31. Nxd5 {[%clk 0:03:57.3]} 31...
Kf7 {[%clk 0:01:16.7]} 32. Kf1 {[%clk 0:03:56.5]} 32... Ke6 {[%clk 0:01:07.7]}
33. Nc7+ {[%clk 0:03:53.5]} 33... Kd7 {[%clk 0:01:05.3]} 34. Nb5 {[%clk
0:03:43.5]} 34... a6 {[%clk 0:01:00.4]} 35. Kxe1 {[%clk 0:03:41.7]} 35... axb5
{[%clk 0:00:59]} 36. Ke2 {[%clk 0:03:41.6]} 36... Kc6 {[%clk 0:00:54.5]} 37. Ke3
{[%clk 0:03:38]} 37... Kd5 {[%clk 0:00:53.4]} 38. Kd3 {[%clk 0:03:35.8]} 38...
g5 {[%clk 0:00:52.1]} 39. g4 {[%clk 0:03:35.1]} 39... h6 {[%clk 0:00:43.2]} 40.
a3 {[%clk 0:03:34]} 40... h5 {[%clk 0:00:26.9]} 41. gxh5 {[%clk 0:03:32.2]}
41... g4 {[%clk 0:00:26.1]} 42. h6 {[%clk 0:03:31.1]} 42... g3 {[%clk
0:00:24.9]} 43. Ke3 {[%clk 0:03:30.5]} 1-0

[Event "Live Chess"]
[Site "Chess.com"]
[Date "2024.06.02"]
[Round "-"]
[White "lateforthesky"]
[Black "TheSmoulderingMaster"]
[Result "1-0"]
[WhiteElo "2074"]
[BlackElo "1767"]
[TimeControl "300"]
[EndTime "7:14:15 PDT"]
[Termination "lateforthesky won by resignation"]

1. e4 {[%clk 0:04:56.8]} 1... c5 {[%clk 0:04:58.7]} 2. Nf3 {[%clk 0:04:56]} 2...
d6 {[%clk 0:04:58.1]} 3. Nc3 {[%clk 0:04:54.2]} 3... Nc6 {[%clk 0:04:56.6]} 4.
Bb5 {[%clk 0:04:52.1]} 4... Bd7 {[%clk 0:04:55.4]} 5. O-O {[%clk 0:04:49.9]}
5... Nf6 {[%clk 0:04:49.6]} 6. Re1 {[%clk 0:04:48.1]} 6... e5 {[%clk 0:04:47.1]}
7. d3 {[%clk 0:04:44.7]} 7... g6 {[%clk 0:04:46]} 8. h3 {[%clk 0:04:42.3]} 8...
Bg7 {[%clk 0:04:45]} 9. Bg5 {[%clk 0:04:40.7]} 9... O-O {[%clk 0:04:43.8]} 10.
Nd5 {[%clk 0:04:38.7]} 10... Nd4 {[%clk 0:04:40.6]} 11. Bxd7 {[%clk 0:04:36.2]}
11... Qxd7 {[%clk 0:04:35.2]} 12. Bxf6 {[%clk 0:04:32.4]} 12... Bxf6 {[%clk
0:04:34.2]} 13. Nxf6+ {[%clk 0:04:30.9]} 1-0